Cogmind - Beta 10.2 @@@ ROGUE MODE // 2021.02.21 @ 22:57:04 Player: malcneuro Result: Destroyed by G-34 Mercenary with Small Laser Performance ------------- Evolutions (0) 0 Regions Visited (1) 200 Robots Destroyed (11) 55 Value Destroyed (280) 280 Prototype IDs (2) 40 Alien Tech Used (0) 0 Bonus (0) 0 TOTAL SCORE: 575 Bonus ------- None Cogmind --------- Core Integrity 0/250 Matter 257/300 Energy 250/250 System Corruption 0% Temperature Cool (12) Movement Treading (160) Location -10/Materials Parts ------- > --- POWER (1) -------- Ion Engine > --- PROPULSION (2) --- Light Treads Light Treads > --- UTILITY (2) ------ Small Storage Unit Weapon Shielding > --- WEAPON (2) ------- Light Assault Rifle Light Assault Rifle > --- INVENTORY (6) ---- Ion Engine Light Treads Heat Sink Grenade Launcher Peak State ------------ > --- POWER ------------ Ion Engine > --- PROPULSION ------- Light Treads Light Treads > --- UTILITY ---------- Heat Sink Small Storage Unit > --- WEAPON ----------- EM Pulse Gun Light Assault Rifle > --- INVENTORY -------- Ion Engine Aluminum Leg Aluminum Leg Light Assault Rifle [Rating: 7] Favorites ----------- Power Ion Engine Engine Ion Engine Propulsion Light Treads Treads Light Treads Utility Small Storage Unit Device Heat Sink Storage Small Storage Unit Protection Weapon Shielding Weapon Light Assault Rifle Energy Gun EM Pulse Gun Ballistic Gun Light Assault Rifle Build | -11 -10 ------- Run | Scr Mat Slots Evolved . | . . Power . | . . Propulsion . | . . Utility . | . . Weapon . | . . Parts Attached 12 | 6 6 Power 2 | 1 1 Engine 2 | 1 1 Core . | . . Reactor . | . . Propulsion 3 | 2 1 Treads 3 | 2 1 Leg . | . . Wheel . | . . Hover . | . . Flight . | . . Utility 3 | 1 2 Device 1 | . 1 Storage 1 | 1 . Processor . | . . Hackware . | . . Protection 1 | . 1 Artifact . | . . Weapon 4 | 2 2 Energy Gun 1 | 1 . Energy Cannon . | . . Ballistic Gun 3 | 1 2 Ballistic Cannon . | . . Launcher . | . . Special Weapon . | . . Impact Weapon . | . . Slashing Weapon . | . . Piercing Weapon . | . . Special Melee Weapon . | . . Unidentified Prototypes . | . . Parts Lost 1 | . 1 Power . | . . Propulsion . | . . Utility . | . . Weapon 1 | . 1 Highest Loss Streak 1 | . 1 Average Slot Usage (%) 96 | . 96 Engine 14 | . 14 Treads 28 | . 28 Device 10 | . 10 Storage 14 | . 14 Energy Gun 4 | . 4 Ballistic Gun 23 | . 23 Naked Turns . | . . Heaviest Build 13 | 12 13 Greatest Support 40 | 40 40 Greatest Overweight (x) . | . . Average Overweight (x) . | . . Largest Inventory Capacity 6 | 6 6 Average Capacity 5 | 5 6 Most Carried 5 | 4 5 Average Carried 3 | 2 3 Final Capacity 6 | 6 6 Final Carried 4 | 4 4 Class Distribution -------------------- 100% | Mutant Dominant Class ---------------- Mutant | -10/Materials Resources | -11 -10 ----------- Run | Scr Mat Matter Collected 337 | 252 85 Remotely . | . . Salvage Created 304 | . 304 Parts 22 | . 22 Haulers Intercepted . | . . Recyclers Shooed . | . . Parts Field Recycled . | . . Retrieved Matter . | . . Parts Self-Destructed . | . . Prevented . | . . Kills | -11 -10 ------- Run | Scr Mat Combat Hostiles Destroyed 11 | . 11 Guns 8 | . 8 AOE 3 | . 3 Classes Destroyed 2 | . 2 Swarmer 6 | . 6 Grunt 5 | . 5 Best Kill Streak 3 | . 3 Combat Bots Only 3 | . 3 Max Kills in Single Turn 3 | . 3 Gunslinging 1 | . 1 Exploded 3 | . 3 Melee . | . . Uniques/NPCs Destroyed . | . . Combat | -11 -10 -------- Run | Scr Mat Damage Taken 763 | . 763 Core 256 | . 256 Absorbed by Shields . | . . Core Remaining (%) 100 | 100 . Volleys Fired 41 | . 41 Largest 2 | . 2 Hottest 60 | . 60 Shots Fired 78 | . 78 Gun 78 | . 78 Cannon . | . . Launcher . | . . Special . | . . Kinetic 60 | . 60 Thermal . | . . Explosive . | . . Electromagnetic 18 | . 18 Robot Hit Streak 9 | . 9 Robot Miss Streak 3 | . 3 Penetration Max . | . . Secondary Targets 2 | . 2 Max Gunslinging Chain 1 | . 1 Shots Hit Robots 56 | . 56 Core Hits 22 | . 22 Critical Hits 1 | . 1 Critical Kills . | . . Critical Parts Destroyed 1 | . 1 Melee Attacks . | . . Impact . | . . Slashing . | . . Piercing . | . . Sneak Attacks . | . . Combat Hostiles . | . . Follow-up Attacks . | . . Damage Inflicted 899 | . 899 Guns 543 | . 543 Cannons . | . . Explosions 356 | . 356 Melee . | . . Ramming . | . . Kinetic 370 | . 370 Thermal 109 | . 109 Explosive 247 | . 247 Electromagnetic 173 | . 173 Impact . | . . Slashing . | . . Piercing . | . . Highest Corruption . | . . Average Corruption . | . . Corruption Purged . | . . Overload Shots . | . . Overflow Damage 40 | . 40 Projectiles . | . . Explosions 40 | . 40 Melee . | . . Knockbacks . | . . Impact . | . . Kinetic . | . . Secondary . | . . Self-Inflicted Damage 55 | . 55 Shots 1 | . 1 Rammed . | . . Targets Rammed . | . . Kicked . | . . Crushed . | . . Highest Temperature 100 | . 100 Average Temperature 29 | . 29 Received Heat Transfer 297 | . 297 Siege Activations . | . . Robots Corrupted . | . . Combat Hostiles . | . . Parts Fried . | . . Impact Corruptions . | . . Robots Melted . | . . Combat Hostiles . | . . Parts Melted . | . . Heat Transferred 150 | . 150 Parts Sabotaged . | . . Parts Stolen . | . . Parts Stripped . | . . Power Chain Reactions 1 | . 1 Missiles Intercepted . | . . Alert | -11 -10 ------- Run | Scr Mat Peak Influence 332 | . 332 Initial . | . . Average 176 | . 202 Maximum Alert Level 1 | . 1 Low Security (%) 58 | 100 52 Level 1 41 | . 47 Level 2 . | . . Level 3 . | . . Level 4 . | . . Level 5 . | . . High Security . | . . Max Security . | . . Squads Dispatched 3 | . 3 Investigation 2 | . 2 Extermination . | . . Reinforcement 1 | . 1 Assault . | . . Garrison . | . . Intercept . | . . Construction Impeded . | . . Haulers Reinforced . | . . Stealth | -11 -10 --------- Run | Scr Mat Distress Signals 3 | . 3 Communications Jammed . | . . Distress Signals . | . . Times Spotted 20 | . 20 Peak Tracking Total 5 | . 5 Tactical Retreats . | . . Traps | -11 -10 ------- Run | Scr Mat Traps Triggered . | . . Indirectly . | . . Trap Hack Attempts . | . . Triggered . | . . Disarmed . | . . Reprogrammed . | . . Reused . | . . Traps Extracted . | . . Installed . | . . Triggered . | . . Machines | -11 -10 ---------- Run | Scr Mat Machines Disabled 5 | . 5 Max in Single Turn 4 | . 4 Machines Sabotaged . | . . Garrisons Compromised . | . . Overloaded Fab Kills . | . . Fab Network Shutdowns . | . . Hacking | -11 -10 --------- Run | Scr Mat Machines Accessed 5 | . 5 Terminals 3 | . 3 Fabricators . | . . Repair Stations . | . . Recycling Units 2 | . 2 Scanalyzers . | . . Garrison Access . | . . Total Hacks 12 | . 12 Successful 9 | . 9 Failed 3 | . 3 Catastrophic . | . . Database Lockouts . | . . Manual 4 | . 4 Terminals 9 | . 9 Fabricators . | . . Repair Stations . | . . Recycling Units 3 | . 3 Scanalyzers . | . . Garrison Access . | . . Terminal Hacks 6 | . 6 Record 3 | . 3 Prototype ID Bank 1 | . 1 Branch Access Points 1 | . 1 Hauler Manifests 1 | . 1 Fabricator Hacks . | . . Repair Station Hacks . | . . Recycling Unit Hacks 3 | . 3 Report Inventory 2 | . 2 Retrieve Components 1 | . 1 Scanalyzer . | . . Garrison Access Hacks . | . . Unauthorized Hacks . | . . Terminals . | . . Fabricators . | . . Repair Stations . | . . Recycling Units . | . . Scanalyzers . | . . Garrison Access . | . . Data Cores Recovered . | . . Used . | . . Hacking Detections 4 | . 4 Full Trace Events 2 | . 2 Feedback Events . | . . Feedback Blocked . | . . Robot Schematics Acquired . | . . Robots Built . | . . Matter . | . . Time . | . . Total Robot Build Rating . | . . Part Schematics Acquired . | . . Parts Built . | . . Matter . | . . Time . | . . Total Part Build Rating . | . . Parts Repaired . | . . Time . | . . Parts Recycled . | . . Recycled Matter . | . . Retrieved Matter . | . . Retrieved Components 2 | . 2 Parts Scanalyzed . | . . Part Schematics Acquired . | . . Parts Damaged . | . . Bothacking | -11 -10 ------------ Run | Scr Mat Used RIF Installer . | . . Robots Hacked . | . . Non-combat . | . . Combat . | . . Robot Hacks Applied . | . . Relay Couplers Released . | . . Robots Rewired . | . . Allies Hacked . | . . Hacks Repelled . | . . Allies | -11 -10 -------- Run | Scr Mat Total Allies . | . . Largest Group . | . . Highest-Rated Group . | . . Highest-Rated Ally . | . . Total Orders . | . . Ally Attacks . | . . Total Damage . | . . Kills . | . . Allies Corrupted . | . . Allies Melted . | . . Intel | -11 -10 ------- Run | Scr Mat Robot Analysis Total . | . . Derelict Logs Recovered . | . . Drone Launches . | . . Drone Recoveries . | . . Exploration | -11 -10 ------------- Run | Scr Mat Turns Passed 707 | 92 615 Spaces Moved 360 | 53 307 Core 4 | 4 . Treads 356 | 49 307 Legs . | . . Wheels . | . . Hover . | . . Flight . | . . Fastest Speed 50 | 50 160 Average Speed 158 | 151 160 Slowest Speed 160 | 160 160 Overloaded Moves . | . . Propulsion Burnouts . | . . Robots Hopped . | . . Cave-ins Triggered . | . . Exploration Rate (%) 21 | 5 38 Regions Visited 1 Branch Regions . Pre-discovered Areas . | . . Known Exits Taken . | . . Unknown Exits Taken 1 | 1 . Scrap Searched . | . . Spaces Dug . | . . Terrain Destroyed 28 | . 28 Melee . | . . Projectile . | . . AOE 28 | . 28 Terrain Rammed . | . . Walls Destroyed . | . . Machines Disabled . | . . Actions | -11 -10 --------- Run | Scr Mat Total 426 | 62 364 Wait 3 | . 3 Move 359 | 52 307 Hop . | . . Pick Up 7 | 4 3 Fast Attach 8 | 6 2 Attach 1 | . 1 Detach . | . . Swap 3 | . 3 Drop 4 | . 4 Fire 41 | . 41 Melee . | . . Ram . | . . Kick . | . . Crush . | . . Escape Stasis . | . . Rewire . | . . Trap . | . . Miscellaneous . | . . Route ------- -11/Scrapyard -10/Materials (discovered 3 exits: [*Mat] / *Min x2) History --------- Turn | Location | Event 36 | -11/Scrapyard | Discovered new exit (range 15) 93 | -11/Scrapyard | Entered Materials 173 | -10/Materials | Identified exit to Mines 289 | -10/Materials | Core integrity fell below 50% 319 | -10/Materials | Build established: Mutant 553 | -10/Materials | Discovered new exit (range 16) 695 | -10/Materials | Core integrity fell below 20% 708 | -10/Materials | Destroyed by G-34 Mercenary with Small Laser Last Messages --------------- A-02 Transporter 6x Datajack 00474_ Connecting with Terminal... 00520_ R-06 Scavenger inserts Ion Engine into recycling unit. 00523_ R-06 Scavenger inserts Heat Sink into recycling unit. 00526_ R-06 Scavenger inserts Sml. Laser into recycling unit. 00527_ Recycling unit begins recycling process. 00529_ R-06 Scavenger inserts Aluminum Leg into recycling unit. 00553_ EXIT=FOUND 00574_ Connecting with Recycling Unit... >>Recycling(Report) Matter reserves: 0 Inventory: Empty 00648_ W-16 Scout sends out distress signal. 00660_ G-34 Mercenary destroyed. 00667_ R-06 Scavenger collects Ion Engine. 00667_ W-16 Scout sends out distress signal. 00671_ R-06 Scavenger collects Heat Sink. 00677_ Acquired 31 matter. 00700_ Destroyed Particle Gun. Map ----- +----------------------------------------------------+ | ?????????????????????????????????# #?????????? | | ?????????????????????????????????# #?????????? | | ?????????????????????????????????# ##########? | | ?????????????????????????????????# # #? | | ?????????????????????????????????# # """ #? | | ?????????????????????????????????# # "Y" #? | | ?????????????????????????????????# # #? | | ?????????????????????????????????# + #? | | ?????????????????????????????????# # """ #? | | ?????????????????????????????????### # """ ! #? | | ???????????????????????????????????# # """ #? | | ???????????????????????????????????# # #? | | ???????????????????????????????????# ##########? | | ???????????????????????????????????# #?????????? | | ???????????????????????????????????# #?????????? | | ???????????????????????????????????# #?????????? | | ??????#######?????##############???# #######???? | | ??????# ##### # #???# #???? | | ????? # #???####### #???? | | ????? > T # ""#?????????# #???? | | ????? g # T"#??????####+##### | | ??????#" "##### # ""#??????# # | | ??????????????????## ## ######## """ # | | ???????????????????# ##+####### # """ = # | | ???????????????????# g =t # """ # | | ???????????????????# @w %r + # | | ???????????????????# w #"" # | | ???????????????######+####a % #"Y # | | ???????????????# # #"" # | | ???????????????# = =#| # # | | ???????????????# = # ########## | | ???????????????# # # #?????? | | ???????????????#" """ # ######???? | | ???????????????#T [ """ # #???? | | ???????????????#" """ # #???? | | ???????????????# # #???? | | ???????????????########### #???? | | ???????????????########### ########???? | | ???????????????# #% #??????????? | | ???????????????# + %######+###????????? | | ???????????????# # % # #????????? | | ???????????????# # # """ #????????? | | ???????????????########### # """ #????????? | | ???????????????? # # """ #????????? | | ?????????????????""" """ # # #????????? | | ?????????????????""" """*#= # """ #????????? | | ???????????????# """ """%+ + """ #????????? | | ???????????????# """ """ # # """ #????????? | | ???????????????# """ """ # # #????????? | | ???????????????# # ##########????????? | +----------------------------------------------------+ Best States ------------- Heat Dissipation 35 Energy Generation 10 Energy Capacity 250 Matter Stores 300 Matter Capacity 300 Sight Range 16 Terrain Scan Density 10 Weapon Shielding 33 Evasion (%) 40 Recoil Reduction 2 Item Schematics ----------------- None Robot Schematics ------------------ None Fabricated ------------ Nothing Alien Tech Used ----------------- None Achievements -------------- None Challenges ------------ None Game ------ Seed MassAngularMediator Manual? 0 Play Time 00:13:07 Cumulative 14.4 hours Start 2021.02.21 @ 22:40:34 End 2021.02.21 @ 22:57:04 Sessions 1 Manual Loads 0 Difficulty Rogue Special Mode None Game No. 8 Rogue 6 Adventurer 0 Explorer 2 Win Type - Total 1 Types 1/0/0/0/0/0/0/0/0 Lore% 9 Gallery% 25 Achievement% 21 Wizard Run 0 Options --------- ASCII 0 Keyboard 0 Movement Arrows Keybinds 0 Fullscreen 2 Font 24/Smallcaps Map View 76x50 Tactical HUD 1 Map Filters NONE Filters NONE Steam 1 RUN: 5489f256-c093-477b-809b-73207562a901